fUST/lending_fUST_20260114
["ID","MTS","AMOUNT","RATE_DAILY","PERIOD"]
[401632212,1768320005097,155.06,5e-05,2]
[401632213,1768320005620,155.06,6.2e-05,2]
[401632214,1768320006355,155.06,7.4e-05,2]
[401632215,1768320006863,155.06,8.6e-05,2]
[401632216,1768320007361,155.06,9.8e-05,2]
[401632217,1768320007874,155.06,0.00011,2]
[401632218,1768320011329,-155.06,0.000122,2]
[401632219,1768320011364,-777.51,0.00012329,2]
[401632220,1768320011399,-594.0,0.00012329,2]
[401632221,1768320011432,-3447.32807486,0.000132,2]
[401632222,1768320014020,-251.05120898,0.00013236,2]
[401632223,1768320014245,-1200.0,0.00013271,2]
[401632224,1768320014275,-300.0,0.00013272,2]
[401632225,1768320014304,-300.0,0.00013272,2]
[401632226,1768320014335,-300.0,0.00013272,2]
[401632227,1768320014365,-300.0,0.00013272,2]
[401632228,1768320014395,-500.0,0.00013273,2]
[401632229,1768320014426,-157.21651856,0.00013273,2]
[401632230,1768320014459,-500.0,0.00013273,2]
[401632231,1768320014490,-500.0,0.00013273,2]
[401632232,1768320014521,-500.0,0.00013273,2]
[401632233,1768320014553,-155.06,0.000134,2]
[401632236,1768320035779,-500.0,0.00013273,2]
[401632237,1768320035816,-1881.8430925,0.00013599,2]
[401632238,1768320035978,-3694.8822102,0.00013699,2]
[401632239,1768320038417,-10000.01,0.00013699,2]
[401632240,1768320044389,-2544.10136442,0.00013699,2]
[401632241,1768320044417,-4911.80727116,0.00013699,2]
[401632242,1768320047819,-500.0,0.00013699,2]
[401632243,1768320047852,-589.86066096,0.00013699,2]
[401632244,1768320047885,-500.0,0.00013699,2]
[401632245,1768320047918,-500.0,0.00013699,2]
[401632246,1768320047949,-500.0,0.00013699,2]
[401632247,1768320047986,-500.0,0.00013821,2]
[401632248,1768320048021,-696.9355846,0.00013821,2]
[401632249,1768320048204,-500.0,0.00013821,2]
[401632250,1768320048241,-194.15371614,0.00013821,2]
[401632251,1768320048276,-438.1100766,0.00014096,2]
[401632252,1768320048435,-161.8899234,0.00014096,2]
[401632253,1768320048471,-991.16911887,0.00014247,2]
[401632254,1768320048503,-1000.0,0.00014247,2]
[401632255,1768320048537,-182.262,0.00014269,2]
[401632256,1768320048570,-500.0,0.00014286,2]
[401632257,1768320048603,-500.0,0.00014286,2]
[401632258,1768320048636,-718.974841,0.00014301,2]
[401632259,1768320048668,-311.85701,0.00014366,2]
[401632260,1768320048700,-500.0,0.00014423,2]
[401632261,1768320048982,-182.262,0.00014423,2]
[401632262,1768320048999,-267.70421346,0.00014423,2]
[401632263,1768320056552,-50.03378654,0.00014423,2]
[401632264,1768320056584,-168.3888056,0.00014551,2]
[401632265,1768320056617,-174.61919141,0.00014551,2]
[401632266,1768320056648,-181.08010149,0.00014551,2]
[401632267,1768320056680,-187.78006525,0.00014551,2]
[401632268,1768320056711,-194.72792766,0.00014551,2]
[401632269,1768320056744,-201.93286099,0.00014551,2]
[401632270,1768320056776,-2230.315306,0.00014551,2]
[401632271,1768320056807,-209.40437684,0.00014551,2]
[401632272,1768320056838,-217.15233878,0.00014551,2]
[401632273,1768320056870,-225.18697532,0.00014551,2]
[401632274,1768320056901,-461.67526834,0.00014551,2]
[401632275,1768320056933,-233.51889341,0.00014551,2]
[401632276,1768320056967,-242.15909246,0.00014551,2]
[401632277,1768320057084,-251.11897888,0.00014551,2]
[401632278,1768320057115,-260.4103811,0.00014551,2]
[401632279,1768320057146,-270.0455652,0.00014551,2]
[401632280,1768320057179,-280.03725112,0.00014551,2]
[401632281,1768320057210,-290.39862941,0.00014551,2]
[401632282,1768320057247,-301.1433787,0.00014551,2]
[401632283,1768320057282,-420.0,0.00014551,2]
[401632284,1768320057316,-341.57026567,0.00014559,2]
[401632285,1768320057351,-500.0,0.00014559,2]
[401632286,1768320057386,-500.0,0.00014559,2]
[401632287,1768320057421,-500.0,0.00014559,2]
[401632288,1768320057454,-500.0,0.00014559,2]
[401632289,1768320057491,-500.0,0.00014559,2]
[401632290,1768320058204,-44.06001982,0.00014559,2]
[401632291,1768320058222,-170.56109984,0.00014559,2]
[401632292,1768320059491,-285.37888034,0.00014559,2]
[401632293,1768320059525,-500.0,0.00014559,2]
[401632294,1768320059557,-500.0,0.00014559,2]
[401632295,1768320059589,-500.0,0.00014559,2]
[401632296,1768320059622,-500.0,0.00014559,2]
[401632297,1768320059656,-500.0,0.00014559,2]
[401632298,1768320059690,-500.0,0.00014559,2]
[401632299,1768320059723,-500.0,0.00014559,2]
[401632300,1768320059761,-500.0,0.00014559,2]
[401632301,1768320059797,-500.0,0.00014559,2]
[401632302,1768320059919,-500.0,0.00014559,2]
[401632303,1768320059953,-500.0,0.00014559,2]
[401632304,1768320059991,-299.70369704,0.00014559,2]
[401632305,1768320060027,-500.0,0.00014559,2]
[401632306,1768320060063,-500.0,0.00014559,2]
[401632307,1768320060097,-500.0,0.00014559,2]
[401632308,1768320060132,-309.91012345,0.00014559,2]
[401632309,1768320060166,-500.0,0.00014559,2]
[401632310,1768320060199,-500.0,0.00014559,2]
[401632311,1768320060236,-500.0,0.00014559,2]
[401632312,1768320060270,-280.78235902,0.00014559,2]
[401632313,1768320060673,-158.67630671,0.00014559,2]
[401632314,1768320060692,-60.54133427,0.00014559,2]
[401632315,1768320060701,-439.45866573,0.00014559,2]
[401632316,1768320068739,-300.0,0.00014558,2]
[401632317,1768320068776,-60.54133427,0.00014559,2]
[401632318,1768320068808,-500.0,0.00014559,2]
[401632319,1768320068841,-500.0,0.00014559,2]
[401632320,1768320068877,-500.0,0.00014559,2]
[401632321,1768320068910,-500.0,0.00014559,2]
[401632322,1768320068944,-500.0,0.00014559,2]
[401632323,1768320068979,-500.0,0.00014559,2]
[401632324,1768320069014,-500.0,0.00014559,2]
[401632325,1768320069047,-444.09068953,0.00014559,2]
[401632326,1768320069081,-500.0,0.00014559,2]
[401632327,1768320069335,-390.7459524,0.00014559,2]
[401632328,1768320074711,-109.2540476,0.00014559,2]
[401632329,1768320074754,-500.0,0.00014559,2]
[401632330,1768320074791,-500.0,0.00014559,2]
[401632331,1768320074828,-500.0,0.00014559,2]
[401632332,1768320074928,-6781.5019048,0.0001456,2]
[401632333,1768320080748,-10000.01,0.0001456,2]
[401632334,1768320145837,183.34,7.598e-05,2]
[401632335,1768320146304,220.0,7.902e-05,2]
[401632336,1768320146716,256.67,8.205e-05,2]
[401632337,1768320147136,293.34,8.509e-05,2]
[401632338,1768320147546,330.0,8.813e-05,2]
[401632339,1768320148083,366.67,9.117e-05,2]
[401632340,1768320208023,-172.1,0.000123,2]
[401632341,1768320208045,-191.85492659,0.000123,2]
[401632342,1768320211732,-407.9075776,0.000123,2]
[401632343,1768320216622,157.82,0.00010491,2]
[401632344,1768320237185,-39.25749581,0.000123,2]
[401632345,1768320237219,-500.0,0.00013273,2]
[401632346,1768320237251,-300.0,0.00013673,2]
[401632347,1768320237285,-500.0,0.00013699,2]
[401632348,1768320237315,-515.82,0.000137,2]
[401632349,1768320237347,-229.46,0.000137,2]
[401632350,1768320237380,-256.67452629,0.0001391,2]
[401632351,1768320237413,-300.0,0.00014119,2]
[401632352,1768320243467,500.0,0.00013699,2]
[401632353,1768320247667,500.0,0.00013699,2]
[401632354,1768320288674,169.43,9.413e-05,2]
[401632355,1768320289125,197.67,9.775e-05,2]
[401632356,1768320289983,225.91,0.00010137,2]
[401632357,1768320290443,254.14,0.00010499,2]
[401632358,1768320290843,282.38,0.00010861,2]
[401632359,1768320325318,-548.235786,0.00013273,2]
[401632360,1768320325350,-217.11461226,0.00013273,2]
[401632361,1768320325382,-407.9075776,0.00013273,2]
[401632362,1768320325415,-1200.0,0.00014119,2]
[401632363,1768320325639,-1452.41365002,0.0001412,2]
[401632364,1768320325679,-1775.08365002,0.0001412,2]
[401632365,1768320325710,-6449.84269996,0.0001412,2]
[401632366,1768320325786,-300.0,0.00014246,2]
[401632367,1768320325817,-300.0,0.00014246,2]
[401632368,1768320325848,-559.92470679,0.00014247,2]
[401632369,1768320325880,-192.68119547,0.00014269,2]
[401632370,1768320325913,-1921.01618408,0.0001446,2]
[401632371,1768320325947,-461.67526834,0.00014559,2]
[401632372,1768320325980,-168.3888056,0.00014559,2]
[401632373,1768320326011,-174.61919141,0.00014559,2]
[401632374,1768320326043,-181.08010149,0.00014559,2]
[401632375,1768320326078,-187.78006525,0.00014559,2]
[401632376,1768320326110,-194.72792766,0.00014559,2]
[401632377,1768320326144,-201.93286099,0.00014559,2]
[401632378,1768320326176,-102.953009,0.00014559,2]
[401632379,1768320326404,-106.45136784,0.00014559,2]
[401632380,1768320328251,-217.15233878,0.00014559,2]
[401632381,1768320328304,-225.18697532,0.00014559,2]
[401632382,1768320328340,-233.51889341,0.00014559,2]
[401632383,1768320328377,-242.15909246,0.00014559,2]
[401632384,1768320328413,-251.11897888,0.00014559,2]
[401632385,1768320328452,-2230.315306,0.00014559,2]
[401632386,1768320328486,-260.4103811,0.00014559,2]
[401632387,1768320328521,-270.0455652,0.00014559,2]
[401632388,1768320328554,-280.03725112,0.00014559,2]
[401632389,1768320328585,-290.39862941,0.00014559,2]
[401632390,1768320328616,-347.94623261,0.00014559,2]
[401632391,1768320328832,-303.43071142,0.0001456,2]
[401632392,1768320328849,-10000.01,0.0001456,2]
[401632393,1768320357141,177.91,9.472e-05,2]
[401632394,1768320357556,207.57,9.836e-05,2]
[401632395,1768320357980,237.22,0.000102,2]
[401632396,1768320358245,-298.14690003,0.00012329,2]
[401632397,1768320358448,266.87,0.00010564,2]
[401632398,1768320358899,296.52,0.00010929,2]
[401632399,1768320360253,-368.79665161,0.00012329,2]
[401632400,1768320421231,2050.7,0.00030136,120]
[401632401,1768320427250,163.02,8.485e-05,2]
[401632402,1768320427709,183.4,8.788e-05,2]
[401632403,1768320428125,203.78,9.091e-05,2]
[401632404,1768320447254,-41.43644836,0.00012329,2]
[401632405,1768320447290,-4547.6548148,0.00014327,2]
[401632406,1768320447328,-300.0,0.00014559,2]
[401632407,1768320450154,-8485.54747368,0.0001456,2]
[401632408,1768320456280,-10000.01,0.0001456,2]
[401632409,1768320480622,-10000.01,0.0001456,2]
[401632410,1768320480883,-10000.01,0.0001456,2]
[401632411,1768320481039,-10000.01,0.0001456,2]
[401632412,1768320481188,-10000.01,0.0001456,2]
[401632413,1768320481365,-10000.01,0.0001456,2]
[401632414,1768320481527,-10000.01,0.0001456,2]
[401632415,1768320481692,-10000.01,0.0001456,2]
[401632416,1768320481898,-10000.01,0.0001456,2]
[401632417,1768320482047,-10000.01,0.0001456,2]
[401632418,1768320483378,-300.0,0.00014559,2]
[401632419,1768320483420,-9400.01,0.0001456,2]
[401632420,1768320483632,360.73,9.99e-05,2]
[401632421,1768320483908,360.73,9.99e-05,2]
[401632422,1768320484195,360.73,9.99e-05,2]
[401632423,1768320493636,160.62,7.464e-05,2]
[401632424,1768320493971,192.74,7.763e-05,2]
[401632425,1768320494403,224.86,8.061e-05,2]
[401632426,1768320494821,256.99,8.36e-05,2]
[401632427,1768320495235,289.11,8.658e-05,2]
[401632428,1768320495639,321.24,8.957e-05,2]
[401632429,1768320504828,-256.78192052,0.0001456,2]
[401632430,1768320504860,-500.0,0.0001456,2]
[401632431,1768320504895,-155.06,0.000146,2]
[401632432,1768320504929,-500.0,0.00014697,2]
[401632433,1768320504963,-201.19237479,0.00014697,2]
[401632434,1768320505000,-2818.92181632,0.00014736,2]
[401632435,1768320505033,-500.0,0.00014834,2]
[401632436,1768320505183,-136.09777674,0.00014834,2]
[401632437,1768320510745,-17.22341029,0.00014834,2]
[401632438,1768320510779,-600.0,0.00014841,2]
[401632439,1768320510811,-1946.05827168,0.00014841,2]
[401632440,1768320510841,-617.54411539,0.000149,2]
[401632441,1768320510875,-800.0,0.00014945,2]
[401632442,1768320510909,-500.0,0.00014971,2]
[401632443,1768320510941,-306.57008897,0.00014993,2]
[401632444,1768320511066,-425.21822734,0.00014993,2]
[401632472,1768320567925,-206.06148056,0.00013273,2]
[401632475,1768320569903,-252.41198484,0.00013273,2]
[401632476,1768320605822,651.16,5e-05,2]
[401632477,1768320606492,651.16,5.5e-05,2]
[401632478,1768320607142,651.16,6e-05,2]
[401632479,1768320607208,-41.5265346,0.00013273,2]
[401632480,1768320607242,-155.1417657,0.00013273,2]
[401632481,1768320607271,-211.04553964,0.00013273,2]
[401632482,1768320608199,651.16,6.5e-05,2]
[401632483,1768320608673,651.16,7.1e-05,2]
[401632484,1768320608741,-231.36964492,0.00013273,2]
[401632485,1768320609195,651.16,7.6e-05,2]
[401632486,1768320609834,651.16,8.1e-05,2]
[401632487,1768320610499,651.16,8.6e-05,2]
[401632488,1768320611172,651.16,9.1e-05,2]
[401632489,1768320611681,651.16,9.6e-05,2]
[401632490,1768320612538,651.16,0.000101,2]
[401632491,1768320613219,651.16,0.000106,2]
[401632492,1768320626533,-651.16,0.000112,2]
[401632493,1768320626569,-651.16,0.000117,2]
[401632494,1768320626604,-651.16,0.000122,2]
[401632495,1768320626636,-354.18,0.00012329,2]
[401632496,1768320626673,-651.16,0.000127,2]
[401632497,1768320626709,-651.16,0.000132,2]
[401632498,1768320626743,-165.58481544,0.00013273,2]
[401632499,1768320626777,-651.16,0.000137,2]
[401632500,1768320626810,-164.22110784,0.00013821,2]
[401632501,1768320626844,-166.95815344,0.000142,2]
[401632502,1768320627093,-484.20184656,0.000142,2]
[401632503,1768320627124,-300.0,0.00014301,2]
[401632504,1768320627160,-428.65171728,0.00014559,2]
[401632505,1768320627195,-500.0,0.00014559,2]
[401632506,1768320627233,-476.84061897,0.00014559,2]
[401632507,1768320627265,-1200.0,0.00014559,2]
[401632508,1768320627311,196.25,0.00010832,2]
[401632509,1768320627690,-5735.94101541,0.0001456,2]
[401632510,1768320627724,251.75,0.00011303,2]
[401632511,1768320627745,-9.91,0.00011303,2]
[401632512,1768320627755,-9990.1,0.0001456,2]
[401632513,1768320627789,-3937.23928176,0.0001456,2]
[401632514,1768320627832,-2125.53143648,0.0001456,2]
[401632515,1768320627864,-166.33892588,0.0001456,2]
[401632516,1768320627900,-651.16,0.000147,2]
[401632517,1768320627933,-800.0,0.00014863,2]
[401632518,1768320627967,-800.0,0.00014912,2]
[401632519,1768320627999,-113.94927528,0.00014923,2]
[401632520,1768320628391,-327.08,0.00011774,2]
[401632521,1768320628401,-84.5021612,0.00014923,2]
[401632522,1768320628422,-601.54856352,0.00014923,2]
[401632523,1768320628433,-198.45143648,0.00014966,2]
[401632524,1768320628458,-101.54856352,0.00014966,2]
[401632525,1768320628467,-300.0,0.00014966,2]
[401632526,1768320628476,-300.0,0.00014966,2]
[401632527,1768320628485,-98.45143648,0.00014966,2]
[401632528,1768320628505,-201.54856352,0.00014966,2]
[401632529,1768320628516,-598.45143648,0.00014967,2]
[401632530,1768320629307,-392.5,0.00012245,2]
[401632531,1768320629345,-457.91,0.00012716,2]
[401632532,1768320629382,-523.33,0.00013187,2]
[401632533,1768320629475,-7252.53,0.00014967,2]
[401632534,1768320629652,-588.74,0.00013658,2]
[401632535,1768320629694,-8822.53,0.00014967,2]
[401632536,1768320629789,-10000.01,0.00014967,2]
[401632559,1768320631668,-654.16,0.00014129,2]
[401632560,1768320631678,-121696.92695404,0.00014967,2]
[401632561,1768320632357,-3430.24683981,0.00014967,2]
[401632562,1768320632384,-3139.51632038,0.00014967,2]
[401632569,1768320638775,-800.0,0.00014969,2]
[401632570,1768320638785,-2230.315306,0.00014991,2]
[401632571,1768320638795,-152.0,0.00014993,2]
[401632572,1768320638804,-152.0,0.00014993,2]
[401632573,1768320638814,-86.35749296,0.00014993,2]
[401632574,1768320638826,-65.64250704,0.00014993,2]
[401632575,1768320638835,-152.0,0.00014993,2]
[401632576,1768320638845,-206.67839926,0.00014993,2]
[401632578,1768320638855,-152.0,0.00014993,2]
[401632580,1768320638865,-152.0,0.00014993,2]
[401632582,1768320638875,-152.0,0.00014993,2]
[401632583,1768320638884,-152.0,0.00014993,2]
[401632585,1768320638893,-284.0,0.00014993,2]
[401632587,1768320638903,-151.0,0.00015,2]
[401632589,1768320638912,-151.0,0.00015,2]
[401632591,1768320638922,-1000.0,0.00015,2]
[401632593,1768320638932,-800.0,0.00015006,2]
[401632596,1768320638941,-103.71540933,0.0001501,2]
[401632610,1768320639066,-406.0,0.0001501,2]
[401632612,1768320639082,-290.28459067,0.0001501,2]
[401632614,1768320639091,-169.07956,0.00015068,2]
[401632616,1768320639100,-800.0,0.00015077,2]
[401632618,1768320639110,-800.0,0.00015096,2]
[401632620,1768320639120,-800.0,0.00015104,2]
[401632622,1768320639130,-500.0,0.00015108,2]
[401632624,1768320639141,-800.0,0.00015133,2]
[401632626,1768320639155,-1930.54392698,0.00015219,2]
[401632628,1768320639164,-800.0,0.00015222,2]
[401632630,1768320639173,-168.3888056,0.00015239,2]
[401632632,1768320639183,-250.0,0.00015239,2]
[401632634,1768320639193,-168.3888056,0.00015239,2]
[401632636,1768320639201,-174.61919141,0.00015239,2]
[401632638,1768320639211,-181.08010149,0.00015239,2]
[401632640,1768320639221,-187.78006525,0.00015239,2]
[401632642,1768320639230,-194.72792766,0.00015239,2]
[401632644,1768320639240,-201.93286099,0.00015239,2]
[401632646,1768320639249,-209.40437684,0.00015239,2]
[401632649,1768320639258,-62.16724117,0.00015239,2]
[401632652,1768320639270,-154.98509761,0.00015239,2]
[401632654,1768320639279,-461.67526834,0.00015239,2]
[401632656,1768320639288,-225.18697532,0.00015239,2]
[401632658,1768320639298,-233.51889341,0.00015239,2]
[401632660,1768320639307,-242.15909246,0.00015239,2]
[401632662,1768320639317,-57.28905295,0.00015239,2]
[401632745,1768320640502,-3e-08,0.00015239,2]
[401633651,1768320649431,-1632.63,0.0001412,2]
[401634965,1768320662960,300.0,0.00014119,2]
[401635402,1768320667612,155.0,0.0001,2]
[401635520,1768320668828,-1632.64,0.0001412,2]
[401635532,1768320668961,-6279.73,0.0001412,2]
[401636091,1768320677898,-455.0,0.0001412,2]
[401636092,1768320677947,-9090.01,0.0001412,2]
[401636485,1768320769961,156.8,7.429e-05,2]
[401636486,1768320770367,182.93,7.715e-05,2]
[401636487,1768320770754,209.07,8.001e-05,2]
[401636488,1768320771159,235.2,8.286e-05,2]
[401636489,1768320771581,261.33,8.572e-05,2]
[401636490,1768320793662,-909.99,0.0001412,2]
[401636491,1768320793696,-2228.01,0.0001412,2]
[401636492,1768320793799,-2678.68,0.0001412,2]
[401636493,1768320796521,-1045.33,0.0001412,2]
[401636494,1768320796563,-7909.35,0.00014343,2]
[401636495,1768320802581,-268.06588224,0.00014232,2]
[401636496,1768320802616,-2090.65,0.00014343,2]
[401636497,1768320802689,-5282.57823552,0.00014343,2]
[401636498,1768320836894,170.43,6.83e-05,2]
[401636499,1768320837430,213.04,7.114e-05,2]
[401636500,1768320837699,255.65,7.399e-05,2]
[401636501,1768320838137,298.26,7.683e-05,2]
[401636502,1768320838556,340.86,7.968e-05,2]
[401636503,1768320838980,383.47,8.253e-05,2]
[401636504,1768320839392,426.08,8.537e-05,2]
[401636505,1768321124191,-500.0,0.00013273,2]
[401636506,1768321124214,-195.14123004,0.00013486,2]
[401636507,1768321156518,1063.0,0.00022545,34]
[401636508,1768321158814,-67.56333456,0.00013486,2]
[401636509,1768321158851,-500.0,0.00013699,2]
[401636510,1768321158883,-1000.0,0.00013821,2]
[401636511,1768321159061,-4777.09333088,0.00014224,2]
[401636512,1768321159095,-2543.5597021,0.00014224,2]
[401636513,1768321159121,-4912.8905958,0.00014224,2]
[401636514,1768321161537,-2207.9235642,0.00014224,2]
[401636515,1768321161574,-1000.0,0.00014301,2]
[401636516,1768321161606,-671.62176448,0.00014343,2]
[401636517,1768321161638,-1059.54843081,0.00014368,2]
[401636518,1768321161868,-121.82248102,0.00014368,2]
[401636519,1768321161907,-718.02886504,0.000146,2]
[401636520,1768321161939,-1632.63,0.00014602,2]
[401636521,1768321161971,-300.0,0.00014799,2]
[401636522,1768321162004,-181.141,0.00014843,2]
[401636523,1768321162035,-498.8643736,0.000149,2]
[401636524,1768321162066,-1000.0,0.00015,2]
[401636525,1768321162096,-501.63562542,0.00015,2]
[401636526,1768321162501,335.41027188,0.00014894,2]
[401636527,1768321167596,-2693.66307743,0.00014894,2]
[401636528,1768321205184,150.95,5e-05,2]
[401636529,1768321206274,150.95,6.3e-05,2]
[401636530,1768321206920,150.95,7.6e-05,2]
[401636531,1768321207557,150.95,9e-05,2]
[401636532,1768321208450,150.95,0.000103,2]
[401636533,1768321209088,150.95,0.000116,2]
[401636534,1768321209833,150.95,0.000129,2]
[401636537,1768321351186,170.0,0.00020696,120]
[401636538,1768321352698,170.0,0.00021731,120]
[401636539,1768321353320,-150.95,0.000143,2]
[401636540,1768321353353,-628.0,0.00014551,2]
[401636541,1768321353389,-732.34,0.00014559,2]
[401636542,1768321353424,-300.0,0.00014965,2]
[401636543,1768321353796,-5009.67972812,0.00014965,4]
[401636544,1768321353835,-3623.37200514,0.00014965,4]
[401636545,1768321353875,-2753.26598972,0.00014965,4]
[401636546,1768321356266,-732.34,0.00014966,2]
[401636547,1768321356300,-732.34,0.00014966,2]
[401636548,1768321356335,-732.34,0.00014966,2]
[401636549,1768321356372,-732.34,0.00014966,2]
[401636550,1768321356408,-732.34,0.00014966,2]
[401636551,1768321356440,-732.34,0.00014966,2]
[401636552,1768321356475,-479.59,0.00014966,2]
[401636553,1768321356597,-252.75,0.00014966,2]
[401636554,1768321359301,-732.34,0.00014966,2]
[401636555,1768321359336,-827.0,0.00015,2]
[401636556,1768321444458,-164.654,0.00014423,2]
[401636557,1768321459721,-257.4504733,0.0001472,2]
[401636558,1768321474858,-800.0,0.00015016,2]
[401636568,1768321490057,-800.0,0.00015066,2]
[401636569,1768321505239,-800.0,0.00015097,2]
[401636570,1768321512284,2589.49967993,0.00015052,2]
[401636571,1768321520558,-668.0,0.00015136,2]
[401636572,1768321520590,-500.0,0.00015136,2]
[401636573,1768321520623,-524.0,0.00015136,2]
[401636574,1768321520656,-500.0,0.00015136,2]
[401636575,1768321525033,4891.9123691,0.00014305,2]
[401636576,1768321535691,-202.0,0.00015152,2]
[401636577,1768321535729,-300.0,0.00015152,2]
[401636580,1768321550681,-800.0,0.00015153,2]
[401636581,1768321557285,1726.33311995,0.00015136,2]
[401636582,1768321571972,166.39,7.972e-05,2]
[401636583,1768321627100,-2359.18137476,0.00015219,2]
[401636584,1768321635363,207.61409938,0.00014916,2]
[401636585,1768321639803,162.65,7.725e-05,2]
[401636586,1768321640239,182.98,8e-05,2]
[401636587,1768321640640,201.81175673,8.276e-05,2]
[401636589,1768321661481,5805.914782,0.00014419,2]
[401636590,1768321684308,1000.0,0.00015,2]
[401636592,1768321706846,3194.095218,0.00014967,2]
[401636593,1768321706873,10000.01,0.00014967,2]
[401636594,1768321706900,10000.01,0.00014967,2]
[401636595,1768321706926,10000.01,0.00014967,2]
[401636596,1768321706953,10000.01,0.00014967,2]
[401636597,1768321706979,10000.01,0.00014967,2]
[401636598,1768321707006,10000.01,0.00014967,2]
[401636599,1768321707032,3361.09402506,0.00014967,2]
[401636600,1768321716248,3293.21134449,0.0001,2]
[401636601,1768321717527,1372.36518407,0.00015,3]
[401636603,1768321733532,-2791.20466604,0.00015,7]
[401636612,1768321812897,800.0,0.00014835,2]
[401636613,1768321812953,800.0,0.00014968,2]
[401636614,1768321813011,800.0,0.00014912,2]
[401636615,1768321815197,500.0,0.00030136,120]
[401636616,1768321815482,500.0,0.00030136,120]
[401636617,1768321815979,500.0,0.00030136,120]
[401636618,1768321816249,500.0,0.00030136,120]
[401636619,1768321816487,500.0,0.00030136,120]
[401636620,1768321816729,500.0,0.00030136,120]
[401636621,1768321817011,500.0,0.00030136,120]
[401636622,1768321817255,500.0,0.00030136,120]
[401636623,1768321817513,300.00000041,0.00030136,120]
[401636659,1768321831858,-731.72053255,0.0001501,2]
[401636660,1768321831867,-581.60028035,0.0001501,2]
[401636661,1768321831877,-636.0,0.0001501,2]
[401636662,1768321831886,-800.0,0.00015028,2]
[401636663,1768321831896,-500.0,0.00015035,2]
[401636664,1768321831904,-252.30146384,0.00015103,2]
[401636665,1768321831913,-630.32995662,0.00015172,2]
[401636666,1768321831923,-300.0,0.00015272,2]
[401636667,1768321831931,-668.0,0.00015273,2]
[401636668,1768321831940,-500.0,0.00015273,2]
[401636669,1768321831949,-524.0,0.00015273,2]
[401636670,1768321831958,-500.0,0.00015273,2]
[401636671,1768321831977,-1150.88874663,0.00015273,2]
[401636672,1768321831987,-651.16,0.000153,2]
[401636673,1768321831996,-181.62823332,0.00015301,2]
[401636674,1768321832006,-151.0,0.00015301,2]
[401636675,1768321832015,-151.0,0.00015301,2]
[401636676,1768321832024,-1499.99999997,0.00015301,2]
[401636677,1768321832034,-151.0,0.00015301,2]
[401636678,1768321832043,-2030.296672,0.00015301,2]
[401636679,1768321832052,-151.0,0.00015301,2]
[401636680,1768321832061,-151.0,0.00015301,2]
[401636681,1768321832071,-151.0,0.00015301,2]
[401636682,1768321832080,-168.3888056,0.00015301,2]
[401636683,1768321832090,-174.61919141,0.00015301,2]
[401636684,1768321832099,-2230.315306,0.00015301,2]
[401636685,1768321832108,-181.08010149,0.00015301,2]
[401636686,1768321832117,-187.78006525,0.00015301,2]
[401636687,1768321832127,-194.72792766,0.00015301,2]
[401636688,1768321832136,-201.93286099,0.00015301,2]
[401636689,1768321832145,-209.40437684,0.00015301,2]
[401636690,1768321832154,-217.15233878,0.00015301,2]
[401636691,1768321832163,-225.18697532,0.00015301,2]
[401636692,1768321832172,-233.51889341,0.00015301,2]
[401636693,1768321832181,-242.15909246,0.00015301,2]